[Event "ESP-ch Teams Primera 2022"]
[Site "Sanxenxo Pontevedra"]
[Date "2022.09.22"]
[Round "6.17"]
[White "Bosque Ortega, Xavier"]
[Black "Glavina, Pablo"]
[Result "0-1"]
[ECO "D00"]
[WhiteElo "2164"]
[BlackElo "2400"]
[Annotator "TA"]
[PlyCount "80"]
[EventDate "2022.09.17"]
[EventType "team-tourn"]
[EventCountry "ESP"]
[SourceTitle "playchess.com"]
[Source "ChessBase"]
[SourceQuality "1"]
[TimeControl "5400+30"]

{[%evp 9,80,18,35,17,22,0,0,0,0,0,0,-185,-181,-195,-192,-187,-202,-199,-193,-194,-177,-266,-256,-305,-301,-329,-316,-326,-291,-293,-275,-326,-331,-352,-350,-400,-401,-438,-437,-430,-433,-426,-416,-439,-425,-445,-425,-289,-378,-956,-485,-577,-568,-502,-564,-550,-554,-552,-523,-897,-901,-885,-875,-999,-799,-1044,-1034,-1253,-883,-1384,-1397,-1240,-1204]} 1. d4 {[%emt 0:00:03]} d5 {[%emt 0:00:22]} 2. Bf4 {[%emt 0:00:31]} c5 {[%emt 0:00:15]} 3. e3 {[%emt 0:00:23]} Nc6 {[%emt 0:00:06]} 4. c3 {[%emt 0:00:14]} Qb6 {[%emt 0:00:20]} 5. Qb3 {[%emt 0:00:18]} c4 {[%emt 0:00:10]} 6. Qc2 {[%emt 0:00:38] D00: 1 d4 d5: Unusual lines.} e5 $1 {[%emt 0:00:31][%mdl 4] is recently more successful than 6...Bf5.} 7. Bxe5 {[%emt 0:09:43]} Nxe5 {[%emt 0:01:02]} 8. dxe5 {[%emt 0:00:04] The position is equal.} Bf5 {[%emt 0:00:17][%mdl 64] Deflection} 9. Qxf5 {[%emt 1:17:36]} Qxb2 {[%emt 0:00:08] Hoping for ...g6.} 10. e6 $2 {[%emt 0:00:04]} fxe6 $1 $19 {[%emt 0:00:11]} 11. Qxe6+ {[%emt 0:00:02] [#]} Be7 $146 {[%emt 0:00:07]} (11... Ne7 12. Bxc4 Rc8 {[#]} 13. Bd3 $1 $16 (13. Bxd5 Qxa1 14. Qe4 Qb2 $16)) ({Predecessor:} 11... Ne7 12. Bxc4 dxc4 13. Nf3 Qb6 14. Qxc4 Rc8 15. Qb3 Nc6 16. O-O Na5 17. Qa4+ Nc6 {0-1 (74) Csonka,B (2498)-Rasulov,V (2478) Chess.com INT 2021}) 12. Nf3 {[%emt 0:00:34][%cal Of1c4] aiming for Bxc4!} (12. Qxd5 $2 Rd8 13. Qxd8+ (13. Qh5+ $2 g6 $19) 13... Kxd8 14. Bxc4 Qxa1 $19) 12... Qxa1 {[%emt 0:00:10]} 13. Nfd2 {[%emt 0:03:20]} Nf6 {[%emt 0:00:55]} ({Not} 13... Qxa2 14. Qxd5 Qb2 15. Be2 $11) 14. Be2 {[%emt 0:01:56]} Qxa2 {[%emt 0:00:16]} 15. O-O {[%emt 0:01:05]} (15. e4 {was called for.}) 15... Qa4 {[%emt 0:02:10]} 16. e4 {[%emt 0:00:59]} Qd7 {[%emt 0:01:17]} 17. exd5 {[%emt 0:00:26]} b5 {[%emt 0:00:33]} ({Avoid the trap} 17... Qxd5 $2 18. Qe3 $19) ({But not} 17... Nxd5 $2 18. Qxd7+ Kxd7 19. Bf3 $19) 18. Bf3 {[%emt 0:00:51]} Rd8 {[%emt 0:03:01]} 19. Re1 {[%emt 0:00:34]} Qxe6 {[%emt 0:00:26]} 20. dxe6 {[%emt 0:00:03]} O-O {[%emt 0:00:19]} 21. Bc6 {[%emt 0:00:09]} a6 {[%emt 0:00:15]} 22. Bb7 {[%emt 0:00:26]} Rd6 {[%emt 0:00:13]} 23. h3 {[%emt 0:00:35]} Rb8 {[%emt 0:00:21]} 24. Bf3 {[%emt 0:00:03]} Rbb6 {[%emt 0:00:21]} 25. Ne4 {[%emt 0:01:09]} Nxe4 {[%emt 0:00:21]} 26. Rxe4 {[%emt 0:00:02]} Kf8 {[%emt 0:00:25]} 27. Bg4 {[%emt 0:00:48]} h5 {[%emt 0:00:16]} 28. Rf4+ {[%emt 0:01:06]} Bf6 {[%emt 0:00:08]} 29. Bf5 {[%emt 0:00:41]} (29. Bxh5 Rxe6 30. Kf1) 29... Ke7 {[%emt 0:00:58] Black is clearly winning.} 30. g4 hxg4 {[%emt 0:00:16]} 31. Bxg4 {[%emt 0:00:26]} g5 {[%emt 0:00:33]} 32. Re4 {[%emt 0:00:47]} Rd3 {[%emt 0:00:41]} 33. Kg2 {[%emt 0:00:44]} a5 {[%emt 0:00:59]} 34. Na3 {[%emt 0:00:30]} Rxc3 {[%emt 0:00:25]} 35. Nb1 {[%emt 0:00:20]} Rd3 {[%emt 0:00:12]} 36. Be2 {[%emt 0:00:14]} Rdd6 {[%emt 0:00:06] And now ...c3 would win.} 37. Bg4 {[%emt 0:00:07]} c3 {[%emt 0:00:32]} 38. Na3 {[%emt 0:00:06]} Rd2 {[%emt 0:00:17]} 39. Bf5 {[%emt 0:00:57]} Bd4 {[%emt 0:02:14]} 40. Nc2 {[%emt 0:00:56]} Bxf2 {[%emt 0:00:23] White got outplayed after the opening.  Weighted Error Value: White=0.80/Black=0.34} 0-1

[Event "ESP-ch Teams Primera 2022"]
[Site "Sanxenxo Pontevedra"]
[Date "2022.09.22"]
[Round "6.18"]
[White "Vega Gutierrez, Sabrina"]
[Black "Castillo Escario, Yolanda"]
[Result "1-0"]
[ECO "C60"]
[WhiteElo "2395"]
[BlackElo "2035"]
[Annotator "TA"]
[PlyCount "57"]
[EventDate "2022.09.17"]
[EventType "team-tourn"]
[EventCountry "ESP"]
[SourceTitle "playchess.com"]
[Source "ChessBase"]
[SourceQuality "1"]
[TimeControl "5400+30"]

{[%evp 14,57,37,39,43,23,18,18,65,70,56,37,34,31,57,43,127,114,225,215,193,219,257,208,218,242,412,397,404,409,468,472,571,571,608,614,604,606,706,695,1772,1607,29988,3779,29995,29994]} 1. e4 {[%emt 0:01:23]} e5 {[%emt 0:00:08]} 2. Nf3 {[%emt 0:00:38]} Nc6 {[%emt 0:00:07]} 3. Bb5 {[%emt 0:00:06][%cal Bf1b5,Bb5a4,Ba4b3][%mdl 32]} Nge7 {[%emt 0:00:13]} 4. O-O {[%emt 0:05:56]} g6 {[%emt 0:00:18]} 5. c3 {[%emt 0:04:06][%cal Bc2c3,Bc3d4][%mdl 32]} a6 {[%emt 0:00:19]} 6. Ba4 {[%emt 0:00:24]} Bg7 {[%emt 0:00:44]} 7. d4 {[%emt 0:00:31]} exd4 {[%emt 0:00:17]} 8. cxd4 {[%emt 0:00:06]} b5 {[%emt 0:00:04] C60: Ruy Lopez: Unusual Black 3rd moves and 3...g6.} 9. Bb3 {[%emt 0:02:12]} O-O {[%emt 0:01:40]} 10. Nc3 {[%emt 0:04:59] Against d5} h6 {[%emt 0:03:26]} (10... Na5 $11) 11. d5 {[%emt 0:13:18]} Na5 {[%emt 0:00:18] [#]} 12. d6 $146 {[%emt 0:00:55]} ({Predecessor:} 12. Bf4 d6 13. Nd4 f5 14. f3 Qe8 15. Rc1 fxe4 16. fxe4 Bd7 17. Qd3 Nxb3 18. axb3 {0-1 (44) Obrien,G (1609)-Vio,M (1868) LSS email 2017}) 12... cxd6 {[%emt 0:08:52]} 13. Qxd6 {[%emt 0:00:12]} Nb7 {[%emt 0:34:05]} 14. Qg3 {[%emt 0:03:13]} d6 {[%emt 0:09:55] White now steadily converts the win.} ({Black should try} 14... Nc5 $14) 15. Rd1 {[%emt 0:01:55] White has more active pieces.} Be6 {[%emt 0:05:35] [#]} (15... b4 $16) 16. Bxe6 $1 $18 {[%emt 0:01:33]} fxe6 {[%emt 0:00:04]} 17. Qh3 {[%emt 0:00:20][%csl LRe6,LRh6]} Nc6 {[%emt 0:11:22]} 18. Qxe6+ {[%emt 0:12:34]} Kh7 {[%emt 0:00:26]} 19. Qh3 {[%emt 0:08:09] Threatens to win with Ng5+.} Rxf3 {[%emt 0:06:38] [#]} (19... Qc8) 20. Qxf3 {[%emt 0:00:24]} ({Don't do} 20. gxf3 Qc8 21. Qxc8 Rxc8 $18) 20... Ne5 {[%emt 0:00:34]} 21. Qe2 {[%emt 0:01:07]} Qh4 {[%emt 0:01:17]} 22. f4 {[%emt 0:03:40]} Nc4 {[%emt 0:01:20]} 23. a4 {[%emt 0:00:24]} Nba5 {[%emt 0:10:53]} 24. axb5 {[%emt 0:00:35]} axb5 {[%emt 0:00:03]} 25. Nxb5 {[%emt 0:03:33]} Rb8 {[%emt 0:00:11]} 26. Nxd6 {[%emt 0:00:52]} Bxb2 {[%emt 0:03:30]} 27. Rxa5 {[%emt 0:02:20]} Bxc1 {[%emt 0:00:54]} 28. Qxc4 {[%emt 0:00:47]} (28. Ra7+ $142 Kh8 29. Nf7+ Kg8 30. Qxc4 Be3+ 31. Kh1 Qe1+ 32. Rxe1 Bxa7 33. Rd1) 28... Bxf4 {[%emt 0:00:18]} 29. Qc7+ {[%emt 0:00:13] Weighted Error Value: White=0.08 (flawless) /Black=0.94} 1-0

[Event "ESP-ch Teams Primera 2022"]
[Site "Sanxenxo Pontevedra"]
[Date "2022.09.22"]
[Round "6.19"]
[White "Cordova, Emilio"]
[Black "Vazquez Igarza, Renier"]
[Result "1/2-1/2"]
[ECO "A06"]
[WhiteElo "2550"]
[BlackElo "2535"]
[Annotator "TA"]
[PlyCount "52"]
[EventDate "2022.09.17"]
[EventType "team-tourn"]
[EventCountry "ESP"]
[SourceTitle "playchess.com"]
[Source "ChessBase"]
[SourceQuality "1"]
[TimeControl "5400+30"]

{[%evp 12,52,0,0,0,0,0,0,0,0,0,0,0,0,0,0,0,0,0,0,0,0,0,0,0,0,0,0,0,0,0,0,0,0,0,0,0,0,0,0,0,0,0]} 1. Nf3 d5 {[%cal Bd7d5,Bd5c4][%mdl 32]} 2. g3 Nf6 3. Bg2 c6 4. c4 dxc4 5. O-O Nbd7 6. Na3 {[%cal Bb1a3,Ba3c4,Bc4e5][%mdl 32]} Nb6 7. Qc2 {The position is equal.} Be6 {A11: English Opening: 1...c6.} 8. Ng5 Bg4 9. Nxc4 Bxe2 10. Ne5 Bh5 11. Re1 $1 h6 12. Ne4 {[#] Threatens to win with Nxf6+.} e6 13. Nxc6 {is the legacy move (13.Nxf6+).} bxc6 14. Nxf6+ gxf6 15. Bxc6+ Nd7 16. Qf5 $1 Bg6 17. Rxe6+ $1 Be7 $1 18. Qxf6 {[%cal Rf6h8] [#]} Rg8 19. Re3 {aiming for Qxe7+. The board is on fire.} Kf8 20. Qf4 Rc8 {[#]} 21. Bb7 $146 ({Predecessor:} 21. Qxh6+ Rg7 22. Qh8+ Rg8 23. Qh6+ Rg7 24. Qh8+ Rg8 25. Qh6+ {½-½ (25) Misericordia,A (2372)-Nowak,I (2238) LSS email 2018}) 21... Bg5 22. Qd6+ Be7 23. Qf4 Bg5 24. Qd6+ Be7 25. Qf4 Bg5 26. Qd6+ Be7 {An interesting draw.  Weighted Error Value: White=0.00 (flawless) /Black=0.00 (flawless)} 1/2-1/2

[Event "ESP-ch Teams Primera 2022"]
[Site "Sanxenxo Pontevedra"]
[Date "2022.09.22"]
[Round "6.20"]
[White "Pulvett Marin, Daniel Eduardo"]
[Black "Krysa, Leandro"]
[Result "1/2-1/2"]
[ECO "E04"]
[WhiteElo "2497"]
[BlackElo "2535"]
[Annotator "TA"]
[PlyCount "68"]
[EventDate "2022.09.17"]
[EventType "team-tourn"]
[EventCountry "ESP"]
[SourceTitle "playchess.com"]
[Source "ChessBase"]
[SourceQuality "1"]
[TimeControl "5400+30"]

{[%evp 9,68,24,28,23,11,17,17,10,20,35,25,28,25,27,29,24,16,30,11,16,20,11,25,0,43,16,90,85,78,18,69,70,82,81,80,84,79,33,50,41,58,0,11,30,65,-2,-7,-2,27,0,102,62,68,91,105,75,107,68,99,101,87]} 1. d4 Nf6 2. c4 e6 3. Nf3 d5 4. g3 dxc4 5. Bg2 c6 6. a4 {E04: Open Catalan: 5 Nf3.} Bb4+ 7. Bd2 a5 8. Qc2 {The position is equal.} O-O 9. Bxb4 axb4 10. Qxc4 Qa5 11. Qc2 b5 {[%cal Rb5a4]} 12. O-O bxa4 {[#]} 13. Ne5 $146 ({Predecessor:} 13. Nbd2 Nbd7 14. Nc4 Qa7 15. Rfc1 Bb7 16. Nd6 Qb8 17. Nxb7 Qxb7 18. Ne5 Nxe5 19. dxe5 {½-½ (36) Forsloef,L (2471)-Korabliov,A (2458) ICCF email 2016}) 13... Bb7 14. Rc1 Nbd7 15. Nxc6 Bxc6 16. Qxc6 (16. Bxc6 {is more complex.} Rac8 17. Nd2 Qa6 18. Rxa4 Qxe2 19. Nf3) 16... Ra6 17. Qc4 e5 (17... Rb8 $11 {keeps the balance.}) 18. Nd2 $16 Qb6 19. d5 {White is more active.} (19. Nf3 $16) 19... Rb8 (19... Rfa8 $11) 20. Qd3 $14 {[#] Black must now prevent Rc6.} Ra7 $1 21. Rc6 Qd4 22. Qxd4 (22. Nc4 {is interesting.} g6 23. Qxd4 exd4 24. d6) 22... exd4 23. Rc4 ({White should try} 23. Nc4 $16) 23... d3 24. e4 a3 25. h3 (25. d6 $14) 25... Ne8 {[%cal Bf6e8,Be8d6,Bd6f5][%mdl 32]} (25... Ne5 $5 26. Rd4 $8 g5 $15) 26. Bf1 f5 27. Bxd3 ({White should play} 27. exf5 $14 a2 28. Kg2) 27... Ne5 $11 28. Rd4 Nd6 29. exf5 a2 (29... Rc8 $1 $11 {remains equal.}) 30. Be2 Nxf5 31. Re4 {[#] aiming for g4.} Nd7 32. Bd1 Nd6 33. Rd4 Nf5 34. Rf4 Nd6 {Weighted Error Value: White=0.15 (very precise) /Black=0.19 (very precise)} 1/2-1/2

[Event "ESP-ch Teams Primera 2022"]
[Site "Sanxenxo Pontevedra"]
[Date "2022.09.22"]
[Round "6.21"]
[White "Ushenina, Anna"]
[Black "Alonso Garcia, Aaron"]
[Result "1/2-1/2"]
[ECO "E32"]
[WhiteElo "2439"]
[BlackElo "2427"]
[Annotator "TA"]
[PlyCount "37"]
[EventDate "2022.09.17"]
[EventType "team-tourn"]
[EventCountry "ESP"]
[SourceTitle "playchess.com"]
[Source "ChessBase"]
[SourceQuality "1"]
[TimeControl "5400+30"]

{[%evp 13,37,0,0,0,0,14,0,0,0,0,0,0,4,14,9,0,8,0,0,8,27,0,0,0,0,0]} 1. d4 {[%emt 0:00:05]} Nf6 {[%emt 0:06:19]} 2. c4 {[%emt 0:00:26]} e6 {[%emt 0:00:04]} 3. Nc3 {[%emt 0:00:12]} Bb4 {[%emt 0:00:01]} 4. Qc2 {[%emt 0:00:44]} O-O {[%emt 0:00:04]} 5. e4 {[%emt 0:00:21]} d5 {[%emt 0:00:01]} 6. e5 {[%emt 0:00:06]} Ne4 {[%emt 0:00:02]} 7. Bd3 {[%emt 0:00:06]} c5 {[%emt 0:00:03]} 8. Nf3 {[%emt 0:00:09] aiming for 0-0. E32: Nimzo-Indian: Classical (4 Qc2): 4...0-0.} cxd4 {[%emt 0:00:01]} 9. Nxd4 {[%emt 0:00:06]} Nd7 {[%emt 0:00:02]} 10. Bf4 {[%emt 0:00:08]} Qh4 {[%emt 0:00:04]} 11. g3 {[%emt 0:00:07]} Qh3 {[%emt 0:00:02]} 12. O-O-O {[%emt 0:01:45] Hoping for Bf1.} Nxc3 {[%emt 0:01:32]} 13. bxc3 {[%emt 0:00:10]} Ba3+ {[%emt 0:00:01]} 14. Kb1 {[%emt 0:00:08]} Nb6 {[%emt 0:00:05]} 15. Bf1 {[%emt 0:01:14]} Qh5 {[%emt 0:00:02]} 16. Be2 {[%emt 0:00:44]} Qh3 {[%emt 0:00:38]} 17. Bf1 {[%emt 0:01:55]} Qh5 {[%emt 0:00:02]} 18. Be2 {[%emt 0:00:45] [#]} Qh3 $146 {[%emt 0:00:08]} ({Predecessor:} 18... Qg6 19. Bd3 Qh5 {½-½ (19) Moiseenko,A (2707)-Tomashevsky,E (2701) Yaroslavl 2014}) 19. Bf1 {[%emt 0:10:32] An even fight not without its subleties.  Weighted Error Value: White=0.03 (flawless) /Black=0.03 (flawless)} 1/2-1/2

[Event "ESP-ch Teams Primera 2022"]
[Site "Sanxenxo Pontevedra"]
[Date "2022.09.22"]
[Round "6.22"]
[White "Suarez Uriel, Adrian"]
[Black "Bernabeu Lopez, Carlos Javier"]
[Result "1/2-1/2"]
[ECO "C54"]
[WhiteElo "2375"]
[BlackElo "2415"]
[Annotator "TA"]
[PlyCount "121"]
[EventDate "2022.09.17"]
[EventType "team-tourn"]
[EventCountry "ESP"]
[SourceTitle "playchess.com"]
[Source "ChessBase"]
[SourceQuality "1"]
[TimeControl "5400+30"]

{[%evp 17,121,0,0,0,0,0,3,0,16,15,12,0,0,0,0,4,20,8,29,27,35,33,61,61,74,81,85,57,74,69,106,65,113,114,109,60,58,65,101,51,59,54,87,86,119,89,127,-29,-16,-63,-60,-70,-73,-137,-140,-116,-123,-119,-110,-109,-105,-122,-87,-108,0,-214,-222,-540,-543,-539,-544,-609,-585,-433,-87,-529,-233,-222,-29,-47,-46,-1150,-1296,-2006,-1633,-1686,-1530,-1542,-4132,-4698,-4133,-3439,-1806,-2420,-159,-159,-159,-159,8,8,8,8,8,8,8,8]} 1. e4 {[%emt 0:04:04]} e5 {[%emt 0:00:06]} 2. Nf3 {[%emt 0:00:07]} Nc6 {[%emt 0:00:04]} 3. Bc4 {[%emt 0:00:04]} Bc5 {[%emt 0:00:13]} 4. c3 {[%emt 0:00:04]} Nf6 {[%emt 0:00:04]} 5. d4 {[%emt 0:00:31]} exd4 {[%emt 0:00:05]} 6. e5 {[%emt 0:00:08]} d5 {[%emt 0:00:12]} 7. Bb5 {[%emt 0:00:06]} Ne4 {[%emt 0:00:05]} 8. cxd4 {[%emt 0:00:05]} Bb6 {[%emt 0:00:04]} 9. Nc3 {[%emt 0:00:07]} O-O {[%emt 0:02:42]} 10. Be3 {[%emt 0:00:12] C54: Giuoco Piano: 4 c3 Nf6, main lines with 5 d4 and 5 d3.} Bg4 {[%emt 0:00:05]} 11. h3 {[%emt 0:00:07]} Bh5 {[%emt 0:00:07][%cal Bg4h5,Bh5g6,Bg6d3][%mdl 32]} 12. Qc2 {[%emt 0:00:04]} Bg6 {[%emt 0:00:21] White must now prevent ...Nxc3. 12...Nxc3 is more advanced technology.} 13. Qb3 {[%emt 0:00:05]} Ne7 {[%emt 0:01:25]} 14. O-O {[%emt 0:00:11]} c6 {[%emt 0:00:07]} 15. Bd3 {[%emt 0:00:03]} Nd2 {[%emt 0:01:08]} 16. Nxd2 {[%emt 0:00:48] aiming for Bxg6.} Bxd3 {[%emt 0:00:04]} 17. Rfe1 {[%emt 0:00:03]} Nf5 {[%emt 0:14:05]} 18. Na4 $1 {[%emt 0:21:46]} ({But not} 18. Nxd5 Qxd5 19. Qxd3 Nxd4 $11) 18... Bb5 {[%emt 0:16:51]} 19. Nxb6 {[%emt 0:01:59] [#]} Qxb6 $146 {[%emt 0:09:55]} ({Predecessor:} 19... axb6 20. a4 Ba6 21. Nf3 Nxe3 22. Rxe3 c5 23. Rd1 Bc4 24. Qc2 Rc8 25. Rc3 Qd7 {1-0 (41) Wan,Y (2499)-Xu,Y (2534) Tianjin 2018}) 20. Qc3 {[%emt 0:03:07]} a5 {[%emt 0:02:19]} 21. a4 {[%emt 0:07:21]} Bc4 {[%emt 0:05:17]} 22. b3 {[%emt 0:04:01]} Ba6 {[%emt 0:00:06]} 23. Nf3 {[%emt 0:02:33]} f6 {[%emt 0:14:47]} 24. Bf4 {[%emt 0:02:28]} Qb4 {[%emt 0:04:21]} (24... fxe5 $14 25. Bxe5 Qd8) 25. Qxb4 $16 {[%emt 0:02:59]} axb4 {[%emt 0:00:05]} 26. Rad1 {[%emt 0:08:30] Against Bd3} (26. Bd2 $1 $16) 26... fxe5 $14 27. Nxe5 {[%emt 0:00:30]} Rfe8 28. Bg5 {[%emt 0:00:30]} (28. f3 $16) 28... h6 29. Bc1 {[%emt 0:00:30]} Re6 30. g4 $1 {[%emt 0:00:30]} Nd6 {[%cal Bf5d6,Bd6e4,Be4d2][%mdl 32]} 31. Bd2 {[%emt 0:00:30]} Ne4 32. Nd7 $2 {[%emt 0:00:30] Against c5} (32. Bxb4 $16 Rae8 33. f3) 32... Rd8 $1 $11 33. Nb6 {[%emt 0:00:30]} (33. Nc5 $11 Nxc5 34. dxc5) 33... Rf8 $15 34. f4 {[%emt 0:00:30]} Ree8 35. Kg2 {[%emt 0:00:30]} (35. Bxb4 $142 Rxf4 36. Re3) 35... Nxd2 $17 36. Rxe8 {[%emt 0:00:30]} Rxe8 37. Rxd2 {[%emt 0:00:30][%mdl 4096] Endgame KRB-KRN} Re3 38. Rb2 {[%emt 0:00:30]} Rd3 $1 39. Nd7 {[%emt 0:00:30]} Rxd4 40. f5 {[%emt 0:00:30]} Rd3 ({Better is} 40... Rd1 $17 {Hoping for ...Bf1+.} 41. Rf2 Rd3) 41. h4 $2 {[%emt 0:00:30]} (41. Re2 $1 $11 {and White stays safe.}) 41... Rc3 $1 $19 42. g5 $2 {[%emt 0:00:30]} (42. Ne5 {is a better chance.}) 42... hxg5 43. hxg5 {[%emt 0:00:30]} Bd3 44. Rf2 {[%emt 0:00:30]} Be4+ 45. Kh2 {[%emt 0:00:30] [#]} Rxb3 $2 (45... Rc2 $1 $19 {[%cal Rc2f2] and Black stays clearly on top.} 46. Kg3 Rxf2 47. Kxf2 Bxf5) 46. a5 $2 {[%emt 0:00:30][%mdl 8192]} (46. Ne5 $17 {nothing else works.} d4 47. f6 gxf6 48. gxf6) 46... Ra3 (46... Rf3 $142 47. Rxf3 Bxf3) 47. f6 {[%emt 0:00:30] [#]} gxf6 (47... Rf3 $1 $19 {[%cal Rf3f2]} 48. Rb2 gxf6 49. Rxb4 fxg5) 48. gxf6 $11 {[%emt 0:00:30] Intending f7+ and mate.} Rf3 $1 49. Rxf3 {[%emt 0:00:30][%mdl 8192]} (49. Rg2+ $15 Kh8 50. Rb2) 49... Bxf3 $15 {KB-KN} 50. Nc5 {[%emt 0:00:30]} d4 51. Kg3 {[%emt 0:00:30]} Bd5 52. Kf4 {[%emt 0:00:30]} b3 {( -> ...b2)} 53. Na4 {[%emt 0:00:30]} c5 54. Ke5 {[%emt 0:00:30]} Bc6 55. Nb2 {[%emt 0:00:30]} Kf7 $2 (55... d3 $19 {is more deadly. Strongly threatening ...d2.} 56. Nc4 Bb5 57. f7+ Kxf7) 56. Kd6 $17 {[%emt 0:00:30]} c4 ({Not} 56... Kxf6 57. Kxc5 Be8 58. Kxd4 $11) 57. Nxc4 {[%emt 0:00:30][%cal Oa5a6]} d3 $2 ({Weaker is} 57... Kxf6 58. a6 b2 59. Nxb2 bxa6 60. Kxc6 $11) (57... Bb5 $17 58. Nd2 Kxf6) 58. a6 $11 {[%emt 0:00:30] Threatens to win with a7. The position is equal.} bxa6 {...Bb5 is the strong threat.} 59. Kxc6 {[%emt 0:00:30]} Kxf6 60. Kc5 {[%emt 0:00:30]} a5 61. Kd4 {[%emt 0:00:30] Weighted Error Value: White=0.63/Black=0.29 (precise)} 1/2-1/2